bitfinex/quotes_SOLUSD_20220128
["timestamp","ask_amount","ask_price","bid_price","bid_amount"]
[1643394830521,13.04,92.95,92.75,6.0]
[1643394830725,10.54655,92.948,92.75,6.0]
[1643394830920,0.1,92.947,92.75,6.0]
[1643394831121,10.54655,92.946,92.751,0.25]
[1643394831321,0.1,92.945,92.76,13.04]
[1643394831522,17.889,92.93,92.77,6.0]
[1643394831726,46.29145456,92.956,92.77,6.0]
[1643394831727,49.04819101,92.929,92.78,13.04]
[1643394831921,0.1,92.928,92.78,13.04]
[1643394832122,10.54655,92.926,92.798,0.31194333]
[1643394832322,10.54655,92.926,92.79,6.0]
[1643394832323,0.1,92.925,92.791,0.25]
[1643394832523,10.54655,92.923,92.791,6.25]
[1643394832722,0.1,92.922,92.791,6.0]
[1643394832924,10.54655,92.921,92.791,6.0]
[1643394833124,13.14,92.92,92.791,6.0]
[1643394833334,13.14,92.92,92.694,5.0]
[1643394833335,10.54655,92.918,92.77,6.0]
[1643394833526,6.0,92.908,92.664,5.0]
[1643394833729,0.1,92.837,92.69,16.177]
[1643394834126,10.54655,92.836,92.691,110.1]
[1643394834328,10.54655,92.836,92.69,16.177]
[1643394834527,39.46586594,92.825,92.69,16.177]
[1643394834730,10.54655,92.824,92.69,16.177]
[1643394834928,10.54655,92.824,92.71,16.174]
[1643394835129,10.54655,92.824,92.68,13.04]
[1643394835342,10.54655,92.824,92.672,17.92667791]
[1643394835343,10.54655,92.824,92.676,2.94419506]
[1643394835529,6.0,92.814,92.673,110.1]
[1643394835729,47.19657744,92.8,92.673,110.1]
[1643394835933,10.54655,92.789,92.679,130.97087297]
[1643394836333,10.54655,92.789,92.679,128.02667791]
[1643394836733,10.54655,92.789,92.679,17.92667791]
[1643394836934,10.54655,92.789,92.655,20.87087297]
[1643394837133,10.54655,92.789,92.62,53.953]
[1643394837332,42.51125694,92.778,92.62,53.953]
[1643394837533,6.0,92.768,92.564,5.0]
[1643394837733,6.0,92.768,92.58,13.04]
[1643394837934,4.859,92.75,92.58,16.196]
[1643394838136,47.98540826,92.739,92.58,16.196]
[1643394838337,47.98540826,92.739,92.602,110.1]
[1643394838338,10.54655,92.737,92.602,110.1]
[1643394838536,6.0,92.727,92.602,110.1]
[1643394838738,10.54655,92.726,92.602,110.1]
[1643394838933,45.24496257,92.725,92.602,110.1]
[1643394839135,10.54655,92.724,92.652,110.1]
[1643394839334,13.04,92.78,92.62,17.92667791]
[1643394839635,10.54655,92.778,92.661,6.0]
[1643394840135,10.54655,92.778,92.663,6.0]
[1643394840335,37.00314467,92.777,92.67,16.182]
[1643394840534,37.00314467,92.777,92.68,6.0]
[1643394840934,0.25,92.776,92.681,0.25]
[1643394842035,0.25,92.776,92.671,0.25]
[1643394842235,0.25,92.776,92.64,32.16930104]
[1643394842436,0.25,92.776,92.64,29.226]
[1643394842636,0.25,92.776,92.64,16.186]
[1643394842850,0.25,92.776,92.661,6.0]
[1643394843040,13.04,92.81,92.661,6.0]
[1643394843237,13.04,92.85,92.662,113.03555463]
[1643394843438,0.1,92.849,92.67,16.182]
[1643394843642,0.1,92.879,92.68,6.0]
[1643394843840,13.04,92.85,92.681,0.25]
[1643394844043,35.63135986,92.849,92.681,6.25]
[1643394844242,0.1,92.848,92.69,13.04]
[1643394844444,0.1,92.848,92.69,29.219]
[1643394844642,0.1,92.848,92.7,6.0]
[1643394844842,2.95669142,92.847,92.7,6.0]
[1643394845045,0.3109505,92.842,92.67,6.0]
[1643394845441,13.04,92.83,92.67,6.0]
[1643394845642,4.856,92.79,92.67,6.0]
[1643394845845,35.06313161,92.789,92.62,53.952]
[1643394846144,6.0,92.779,92.652,0.25]
[1643394846341,0.25,92.778,92.652,0.25]
[1643394846541,0.25,92.778,92.661,6.0]
[1643394847447,6.0,92.779,92.67,6.0]
[1643394847648,0.1,92.844,92.67,6.0]
[1643394847846,10.54655,92.842,92.671,0.25]
[1643394848046,6.0,92.832,92.672,6.0]
[1643394848247,10.54655,92.816,92.672,2.93555463]
[1643394848543,10.54655,92.816,92.682,6.0]
[1643394848749,10.54655,92.816,92.576,15.8904]
[1643394848750,35.56840325,92.815,92.634,2.93555463]
[1643394849049,6.0,92.805,92.624,426.27755819]
[1643394849248,10.54655,92.804,92.624,426.27755819]
[1643394849446,46.21655371,92.799,92.65,16.185]
[1643394849647,6.0,92.789,92.65,16.185]
[1643394850047,4.856,92.78,92.661,6.0]
[1643394850350,6.0,92.77,92.624,426.27755819]
[1643394850551,6.0,92.77,92.652,110.1]
[1643394850757,0.1,92.838,92.698,0.30469184]
[1643394850953,73.36361185,92.953,92.71,13.04]
[1643394850954,0.1,92.92,92.71,13.04]
[1643394851154,4.947,92.95,92.756,0.30365599]
[1643394851357,4.847,92.95,92.77,13.04]
[1643394851553,45.12901638,92.949,92.784,5.0]
[1643394851753,45.12901638,92.949,92.81,16.154]
[1643394851754,0.1,92.948,92.81,16.154]
[1643394851956,0.1,92.948,92.785,0.25]
[1643394852153,0.1,92.948,92.82,6.0]
[1643394852355,0.1,92.948,92.785,0.25]
[1643394852552,4.848,92.94,92.785,0.25]
[1643394853255,4.848,92.94,92.79,16.161]
[1643394853455,44.51722901,92.929,92.79,16.161]
[1643394853656,0.1,92.928,92.8,6.0]
[1643394853856,4.39747479,92.963,92.826,0.30499818]
[1643394854080,4.39747479,92.99,92.801,6.25]
[1643394854379,10.54655,92.989,92.801,6.0]
[1643394854579,13.04,92.98,92.802,0.25]
[1643394854879,49.63927926,92.959,92.802,0.25]
[1643394855080,0.1,92.958,92.81,13.04]
[1643394855280,0.1,92.958,92.811,120.6936]
[1643394855480,0.1,92.958,92.82,6.0]
[1643394855681,0.1,92.958,92.86,16.15]
[1643394855884,0.1,92.958,92.861,0.25]
[1643394856384,0.1,93.009,92.861,0.25]
[1643394856582,6.0,93.0,92.862,10.33792]
[1643394856786,6.0,93.0,92.863,110.35]
[1643394856981,44.63623565,92.999,92.872,6.0]
[1643394857183,44.63623565,92.999,92.863,110.35]
[1643394857184,0.1,92.998,92.873,116.1]
[1643394857384,0.1,92.998,92.874,0.25]
[1643394857586,0.1,92.998,92.88,16.148]
[1643394857784,0.20833332,92.997,92.882,0.3019111]
[1643394858084,0.20833332,92.997,92.883,10.33558]
[1643394858284,0.20833332,92.997,92.891,6.0]
[1643394858484,0.20833332,92.997,92.894,110.1]
[1643394858684,0.20833332,92.997,92.895,10.33424]
[1643394858991,0.20833332,92.997,92.92,16.137]
[1643394859185,0.20833332,92.997,92.921,10.33135]
[1643394860585,0.20833332,92.997,92.87,53.816]
[1643394860885,0.1,93.007,92.88,6.0]
[1643394861085,6.0,92.998,92.882,6.0]
[1643394861286,47.84711869,92.989,92.883,10.33558]
[1643394861588,6.0,92.979,92.883,10.33558]
[1643394862090,6.0,92.979,92.81,23.3309]
[1643394862290,6.0,92.979,92.812,10.34349]
[1643394862489,4.847,92.96,92.82,16.159]
[1643394862690,43.90283406,92.959,92.812,10.34349]
[1643394862887,6.0,92.95,92.822,6.0]
[1643394863087,6.0,92.949,92.813,0.25]
[1643394863291,6.0,92.949,92.815,10.34315]
[1643394863489,6.0,92.949,92.83,16.157]
[1643394863690,6.0,92.949,92.831,10.34137]
[1643394864196,0.20833332,92.948,92.831,10.34137]
[1643394864588,0.20833332,92.948,92.87,16.151]
[1643394865189,0.20833332,92.948,92.871,0.25]
[1643394865391,0.20833332,92.948,92.872,10.3368]
[1643394866291,0.20833332,92.948,92.801,520.84162532]
[1643394866488,0.20833332,92.948,92.81,6.0]
[1643394866689,0.20833332,92.948,92.811,16.3436]
[1643394866893,4.848,92.94,92.83,16.157]
[1643394867089,43.39044696,92.939,92.84,6.0]
[1643394867289,0.1,92.938,92.84,6.0]
[1643394868091,0.1,92.938,92.831,10.34137]
[1643394868291,4.848,92.93,92.831,10.34137]
[1643394868894,0.1,92.938,92.831,10.34137]
[1643394869293,4.848,92.93,92.831,10.34137]
[1643394869897,0.25,92.929,92.831,10.34137]
[1643394870097,0.45833332,92.929,92.79,53.87]
[1643394870297,0.45833332,92.929,92.802,6.0]
[1643394870497,0.45833332,92.929,92.803,10.34449]
[1643394870697,6.20833332,92.929,92.803,10.34449]
[1643394870897,6.20833332,92.929,92.813,6.0]
[1643394871099,48.17816247,92.919,92.813,6.0]
[1643394871301,0.1,92.918,92.803,10.34449]
[1643394871499,6.0,92.909,92.803,10.34449]
[1643394871902,6.0,92.908,92.803,10.34449]
[1643394872104,6.1,92.908,92.788,24.7025]
[1643394872301,6.0,92.908,92.788,24.7025]
[1643394872501,47.13821651,92.899,92.788,24.7025]
[1643394872802,0.1,92.898,92.788,24.7025]
[1643394873001,4.852,92.86,92.788,24.7025]
[1643394873200,44.70811978,92.859,92.72,53.905]
[1643394873404,0.1,92.858,92.692,29.28523632]
[1643394873603,0.1,92.858,92.727,17.42505218]
[1643394873911,0.20833332,92.898,92.741,0.30084494]
[1643394874102,0.20833332,92.898,92.78,16.159]
[1643394874503,0.20833332,92.898,92.79,6.0]
[1643394874705,0.20833332,92.898,92.67,13.04]
[1643394875103,13.04,92.89,92.682,127.52505218]
[1643394875304,40.6518882,92.889,92.682,127.52505218]
[1643394875506,4.853,92.83,92.72,16.177]
[1643394875704,45.59522889,92.829,92.72,16.177]
[1643394876305,0.20833332,92.828,92.72,16.177]
[1643394876505,4.854,92.82,92.72,16.177]
[1643394876711,4.854,92.82,92.705,451.94361929]
[1643394877110,0.20833332,92.828,92.705,451.94361929]
[1643394877312,0.20833332,92.828,92.715,6.0]
[1643394877513,6.0,92.819,92.715,6.0]
[1643394877909,6.0,92.819,92.716,0.25]
[1643394878109,6.0,92.819,92.676,17.42505218]
[1643394878110,6.0,92.819,92.706,0.25]
[1643394878313,6.0,92.819,92.701,0.25]
[1643394878510,6.0,92.819,92.7,53.918]
[1643394878812,0.20833332,92.828,92.7,53.918]
[1643394879009,0.25,92.818,92.7,53.918]
[1643394879211,0.20833332,92.828,92.7,53.918]
[1643394879419,0.45833332,92.828,92.71,22.178]
[1643394879612,0.20833332,92.817,92.71,22.178]
[1643394879815,0.20833332,92.817,92.711,127.77505218]
[1643394880015,0.20833332,92.817,92.73,53.896]
[1643394880411,0.20833332,92.817,92.74,6.0]
[1643394881611,0.20833332,92.817,92.74,22.169]
[1643394881823,0.00833332,92.817,92.741,0.25]
[1643394882020,0.00833332,92.817,92.753,0.30380107]
[1643394882425,0.00833332,92.817,92.753,110.40380107]
[1643394882618,0.00833332,92.817,92.77,16.162]
[1643394882820,0.00833332,92.817,92.771,0.25]
[1643394883020,0.00833332,92.817,92.735,17.42505218]
[1643394883216,0.00833332,92.817,92.724,48.7031]
[1643394883418,0.00833332,92.817,92.736,0.25]
[1643394883822,0.00833332,92.817,92.75,16.172]
[1643394884621,0.00833332,92.817,92.76,6.0]
[1643394884820,0.00833332,92.817,92.75,6.0]
[1643394885422,0.00833332,92.817,92.751,0.25]
[1643394886022,0.00833332,92.817,92.77,16.169]
[1643394886527,0.00833332,92.817,92.75,6.0]
[1643394886923,0.00833332,92.817,92.751,110.1]
[1643394887126,0.00833332,92.817,92.761,6.0]
[1643394887528,0.00833332,92.817,92.77,6.0]
[1643394887746,0.00833332,92.817,92.71,53.912]
[1643394888546,0.00833332,92.817,92.734,6.0]
[1643394888947,0.00833332,92.817,92.735,0.25]
[1643394889148,0.00833332,92.817,92.74,16.173]
[1643394889551,0.00833332,92.817,92.741,0.25]
[1643394890151,0.00833332,92.817,92.74,16.173]
[1643394890750,0.00833332,92.817,92.72,16.177]
[1643394890949,0.00833332,92.817,92.734,6.0]
[1643394891150,0.00833332,92.817,92.69,53.928]
[1643394891350,0.00833332,92.817,92.69,66.968]
[1643394891751,0.00833332,92.817,92.72,16.177]
[1643394892149,0.00833332,92.817,92.69,13.04]
[1643394892350,0.00833332,92.817,92.707,23.4171]
[1643394893553,6.0,92.819,92.707,23.4171]
[1643394893554,2.95196529,92.85,92.717,6.0]
[1643394893852,149.742,92.958,92.717,6.0]
[1643394893853,4.39747479,92.934,92.74,163.02]
[1643394894053,4.39747479,92.954,92.767,0.31447459]
[1643394894253,4.39747479,92.954,92.78,13.04]
[1643394894453,43.87139566,92.957,92.79,13.04]
[1643394894753,4.848,92.95,92.8,13.04]
[1643394895155,4.848,92.95,92.81,6.0]
[1643394895358,4.848,92.95,92.79,6.0]
[1643394895359,4.848,92.95,92.79,13.04]
[1643394895558,4.39747479,92.937,92.77,29.208]
[1643394895754,4.39747479,92.937,92.778,6.0]
[1643394895755,4.851,92.89,92.778,6.0]
[1643394895960,40.4072339,92.889,92.78,6.0]
[1643394896560,40.4072339,92.889,92.75,13.04]
[1643394896958,40.4072339,92.889,92.762,6.0]
[1643394897560,40.4072339,92.889,92.763,6.0]
[1643394897761,40.4072339,92.889,92.752,22.5021]
[1643394898161,40.4072339,92.889,92.762,6.0]
[1643394898364,40.4072339,92.889,92.752,22.5021]
[1643394898960,4.852,92.88,92.752,22.5021]
[1643394899162,4.852,92.88,92.753,0.25]
[1643394899366,4.852,92.88,92.752,22.5021]
[1643394899960,40.4072339,92.889,92.76,16.17]
[1643394900162,40.4072339,92.889,92.77,13.04]
[1643394900360,40.4072339,92.889,92.77,19.04]
[1643394900563,40.4072339,92.889,92.771,24.37694107]
[1643394900761,40.4072339,92.889,92.771,42.68146977]
[1643394900960,40.4072339,92.889,92.78,6.0]
[1643394901161,40.4072339,92.889,92.78,35.207]
[1643394901362,4.39747479,92.926,92.782,6.0]
[1643394901564,4.39747479,92.935,92.79,6.0]
[1643394901763,4.39747479,92.935,92.8,13.04]
[1643394901965,4.39747479,92.947,92.8,13.04]
[1643394902165,4.39747479,92.958,92.84,16.153]
[1643394902367,47.599076,92.956,92.841,0.25]
[1643394902569,4.39747479,92.967,92.85,6.0]
[1643394902766,4.39747479,92.98,92.86,13.04]
[1643394903171,4.39747479,92.98,92.87,6.0]
[1643394903367,4.39747479,92.98,92.88,13.04]
[1643394903567,47.5297868,92.986,92.89,6.0]
[1643394903766,47.5297868,92.986,92.9,13.04]
[1643394903969,4.39747479,93.015,92.9,13.04]
[1643394904172,4.39747479,93.015,92.91,6.0]
[1643394904375,4.39747479,93.015,92.911,0.25]
[1643394904872,42.90434037,93.014,92.911,0.25]
[1643394905074,2.97085987,93.013,92.911,10.81]
[1643394905482,2.97085987,93.013,92.921,6.0]
[1643394905679,42.05938192,93.013,92.93,13.04]
[1643394905876,42.05938192,93.013,92.931,0.25]
[1643394906077,42.05938192,93.013,92.94,6.0]
[1643394906276,42.05938192,93.013,92.95,13.04]
[1643394906702,42.05938192,93.013,92.96,6.0]
[1643394906901,42.05938192,93.013,92.961,0.25]
[1643394907107,42.05938192,93.013,92.96,6.0]
[1643394907303,42.05938192,93.013,92.961,0.25]
[1643394907706,42.05938192,93.013,92.96,6.0]
[1643394907903,42.05938192,93.013,92.632,8.21]
[1643394907904,42.05938192,93.013,92.876,23.1562]
[1643394908105,42.05938192,93.013,92.91,16.144]
[1643394908312,42.05938192,93.013,92.91,13.04]
[1643394908504,42.05938192,93.013,92.876,23.1562]
[1643394908505,42.05938192,93.013,92.89,13.04]
[1643394908908,42.05938192,93.013,92.9,13.04]
[1643394909207,42.05938192,93.013,92.876,23.1562]
[1643394909208,42.05938192,93.013,92.92,13.04]
[1643394909906,42.05938192,93.013,92.89,13.04]
[1643394910305,4.845,93.0,92.89,13.04]
[1643394910508,40.45528571,92.998,92.88,29.189]
[1643394910705,40.45528571,92.998,92.88,16.149]
[1643394910706,1.47577525,92.998,92.88,16.149]
[1643394910911,1.47577525,93.005,92.91,13.04]
[1643394911107,1.47577525,93.031,92.921,6.0]
[1643394911308,1.47577525,93.047,92.95,16.135]
[1643394911508,1.47577525,93.047,92.96,13.04]
[1643394911711,38.92461739,93.058,92.961,110.1]
[1643394911910,47.90143448,93.044,92.961,110.35]
[1643394912111,0.1,93.043,92.971,6.0]
[1643394912307,0.1,93.043,92.97,13.04]
[1643394912507,0.1,93.043,92.95,13.04]
[1643394912708,1.47577525,93.036,92.903,23.7515]
[1643394912909,1.47577525,93.032,92.92,13.04]
[1643394913207,0.1,93.043,92.92,13.04]
[1643394913208,1.47577525,93.031,92.92,13.04]
[1643394913411,39.20619724,93.03,92.92,13.04]
[1643394913627,0.1,93.029,92.92,29.182]
[1643394914016,1.47577525,93.028,92.92,29.182]
[1643394914214,1.47577525,93.027,92.92,29.182]
[1643394914614,0.1,93.029,92.92,29.182]
[1643394915215,0.1,93.029,92.93,16.14]
[1643394916421,0.1,93.029,92.91,13.04]
[1643394916620,0.1,93.029,90.389,0.2]
[1643394916621,0.1,93.029,92.795,99.07420658]
[1643394916820,0.1,93.029,92.87,13.04]
[1643394917020,1.47577525,93.022,92.885,6.0]
[1643394917222,1.47577525,93.021,92.89,13.04]
[1643394917421,1.47577525,93.026,92.89,13.04]
[1643394917621,1.47577525,93.027,92.9,6.0]
[1643394917820,1.47577525,93.023,92.9,19.04]
[1643394918422,1.47577525,93.019,92.9,19.04]
[1643394918623,1.47577525,93.018,92.9,19.04]
[1643394919021,1.47577525,93.015,92.9,35.185]
[1643394919222,38.97022969,93.014,92.9,35.185]
[1643394919422,1.47577525,93.007,92.901,0.25]
[1643394919621,1.47577525,93.006,92.901,0.25]
[1643394920224,1.47577525,93.005,92.902,10.33346]
[1643394920524,1.47577525,93.005,92.912,6.0]
[1643394920725,1.47577525,93.006,92.912,6.0]
[1643394920932,1.47577525,93.01,92.913,0.25]
[1643394921128,1.47577525,93.01,92.921,6.0]
[1643394921325,1.47577525,93.023,92.923,10.33113]
[1643394921525,4.49747479,93.072,92.933,6.0]
[1643394921526,1.47577525,93.02,92.933,6.0]
[1643394921736,1.47577525,93.02,92.923,10.33113]
[1643394921737,1.47577525,93.019,92.894,10.33199154]
[1643394921933,1.47577525,93.006,92.894,10.33199154]
[1643394922132,37.36491268,92.984,92.81,70.9317]
[1643394922331,1.47577525,92.979,92.81,70.9317]
[1643394922534,40.65225787,92.967,92.81,70.9317]
[1643394922831,45.51462604,92.939,92.766,1.41599476]
[1643394923035,13.04,92.93,92.766,1.41599476]
[1643394923232,10.54655,92.929,92.762,93.9313]
[1643394923535,65.17979827,92.929,92.762,93.9313]
[1643394923735,42.73926036,92.919,92.78,16.166]
[1643394923935,13.04,92.91,92.762,93.9313]
[1643394924132,10.54655,92.909,92.762,23.037]
[1643394924334,112.52020198,92.909,92.733,0.81974059]
[1643394924632,101.97365198,92.908,92.731,429.33517091]
[1643394924934,41.46020712,92.905,92.731,429.33517091]
[1643394925132,40.6629253,92.879,92.74,16.173]
[1643394925357,13.04,92.87,92.741,0.25]
[1643394925558,13.04,92.87,92.731,0.25]
[1643394925761,13.04,92.87,92.72,6.0]
[1643394926160,17.892,92.87,92.72,53.91]
[1643394926362,10.54655,92.869,92.69,13.04]
[1643394926557,10.54655,92.869,92.68,13.04]
[1643394926558,36.85186674,92.869,92.68,13.04]
[1643394926759,26.30531674,92.868,92.68,13.04]
[1643394926959,10.54655,92.867,92.68,13.04]
[1643394927358,10.54655,92.867,92.702,2.88922207]
[1643394927559,10.54655,92.867,92.72,16.177]
[1643394927759,10.54655,92.867,92.721,0.25]
[1643394927961,10.54655,92.867,92.71,53.912]
[1643394928560,10.54655,92.867,92.73,16.175]
[1643394929160,6.471,92.86,92.73,16.175]
[1643394929359,13.04,92.85,92.69,53.928]
[1643394929571,10.54655,92.849,92.69,53.928]
[1643394930264,19.57655,92.849,92.69,53.928]
[1643394930863,19.57655,92.849,92.71,16.179]
[1643394931162,19.57655,92.849,92.69,53.928]
[1643394931465,32.50420856,92.849,92.683,113.7]
[1643394931664,19.57655,92.849,92.69,6.0]
[1643394931863,14.27655,92.849,92.691,0.25]
[1643394932263,9.03,92.849,92.7,16.181]
[1643394932865,9.03,92.849,92.69,6.0]
[1643394933271,9.03,92.849,92.69,22.182]
[1643394933470,20.37904264,92.848,92.69,22.182]
[1643394933978,20.37904264,92.848,92.69,6.0]
[1643394934174,44.63213669,92.859,92.712,0.30787867]
[1643394934470,4.39747479,92.935,92.75,16.17]
[1643394934677,10.54655,92.933,92.76,13.04]
[1643394934870,10.54655,92.933,92.737,0.31071361]
[1643394934871,10.54655,92.933,92.765,0.30193901]
[1643394935071,10.54655,92.933,92.771,110.41478539]
[1643394935272,10.54655,92.933,92.781,110.1]
[1643394935474,41.69310824,92.932,92.79,13.04]
[1643394935671,41.69310824,92.932,92.83,16.158]
[1643394935973,41.69310824,92.932,92.831,0.25]
[1643394936575,41.69310824,92.932,92.823,113.7]
[1643394937173,13.04,92.96,92.8,10.161]
[1643394937376,0.31330129,92.934,92.736,113.7]
[1643394937674,22.99487606,92.933,92.722,367.58847448]
[1643394937874,163.02,92.9,92.722,367.58847448]
[1643394938072,6.473,92.85,92.722,367.58847448]
[1643394938274,13.04,92.84,92.723,37.28044086]
[1643394938475,0.84765624,92.849,92.723,37.28044086]
[1643394938676,13.08,92.84,92.723,37.28044086]
[1643394938874,13.08,92.84,92.741,113.7]
[1643394939079,13.04,92.88,92.741,113.7]
[1643394939279,13.04,92.89,92.741,113.7]
[1643394939978,28.95952557,92.889,92.75,6.0]
[1643394940177,13.04,92.91,92.75,6.0]
[1643394940477,10.54655,92.908,92.751,16.46333823]
[1643394940676,10.54655,92.908,92.753,110.1]
[1643394940880,10.54655,92.908,92.76,6.0]
[1643394941077,2.95669142,92.907,92.76,6.0]
[1643394941278,29.56209339,92.906,92.761,37.28044086]
[1643394941689,6.468,92.9,92.761,37.28044086]
[1643394941878,5.76801577,92.889,92.761,37.28044086]
[1643394942078,5.76801577,92.889,92.762,0.25]
[1643394942778,6.469,92.88,92.761,37.28044086]
[1643394942979,13.04,92.87,92.71,13.04]
[1643394943181,13.04,92.87,92.725,113.7]
[1643394943585,13.04,92.87,92.731,110.1]
[1643394943781,19.509,92.87,92.731,110.1]
[1643394944013,27.07597781,92.869,92.732,37.50192066]
[1643394944284,30.03266923,92.869,92.732,37.50192066]
[1643394944480,39.49697173,92.868,92.733,110.1]
[1643394944886,2.95669142,92.867,92.733,110.1]
[1643394945080,6.471,92.84,92.733,110.1]
[1643394945282,8.25413135,92.829,92.733,110.1]
[1643394945683,8.25413135,92.829,92.732,37.50192066]
[1643394945882,8.25413135,92.829,92.733,110.1]
[1643394946096,8.25413135,92.829,92.732,37.50192066]
[1643394946288,6.472,92.82,92.732,37.50192066]
[1643394946891,13.04,92.85,92.733,110.1]
[1643394947088,4.39747479,92.914,92.733,110.1]
[1643394947089,13.04,92.89,92.733,110.1]
[1643394947487,13.04,92.89,92.741,110.1]
[1643394947689,2.95669142,92.905,92.756,113.7]
[1643394947892,4.39747479,92.941,92.76,13.04]
[1643394948092,24.1726,92.978,92.76,13.04]
[1643394948093,13.04,92.94,92.761,0.26]
[1643394948289,13.04,92.94,92.761,113.23114372]
[1643394948489,13.04,92.94,92.77,6.0]
[1643394948690,34.06851187,92.939,92.77,19.04]
[1643394948890,4.21828871,92.919,92.791,35.09031298]
[1643394949189,4.21828871,92.919,92.8,6.0]
[1643394949393,4.21828871,92.919,92.801,0.25]
[1643394949789,4.21828871,92.919,92.801,110.35]
[1643394949989,21.546,92.94,92.811,110.1]
[1643394950193,113.7,93.074,92.811,110.1]
[1643394950194,25.93847479,92.97,92.811,110.1]
[1643394950391,21.541,92.97,92.82,6.0]
[1643394950590,21.541,92.97,92.821,110.1]
[1643394950791,21.541,92.97,92.821,110.35]
[1643394951094,6.462,92.95,92.841,110.1]
[1643394951291,7.50278224,92.949,92.842,39.54756003]
[1643394951518,7.50278224,92.949,92.851,110.1]
[1643394952192,13.04,92.99,92.861,110.1]
[1643394952391,4.39747479,92.991,92.862,0.25]
[1643394952592,4.39747479,93.009,92.87,6.0]
[1643394952791,4.39747479,93.009,92.88,13.04]
[1643394952994,4.39747479,93.026,92.89,6.0]
[1643394953292,6.457,93.02,92.891,36.785332]
[1643394953894,6.457,93.02,92.9,6.0]
[1643394954298,6.457,93.02,92.901,110.35]
[1643394954795,5.95445978,93.024,92.911,37.66607272]
[1643394955195,32.50223461,93.025,92.912,0.25]
[1643394955395,32.60223461,93.025,92.92,6.0]
[1643394955598,32.50223461,93.025,92.92,6.0]
[1643394955800,32.60223461,93.025,92.921,0.25]
[1643394956000,32.50223461,93.025,92.94,16.135]
[1643394956202,32.50223461,93.025,92.921,110.35]
[1643394956203,32.60223461,93.025,92.941,46.18381812]
[1643394956403,32.50223461,93.025,92.941,46.18381812]
[1643394956602,10.46596764,93.024,92.941,46.18381812]
[1643394957205,6.457,93.02,92.941,46.18381812]
[1643394957703,6.457,93.02,92.814,5.0]
[1643394957904,19.98936242,93.019,92.86,13.04]
[1643394958104,6.46,92.98,92.88,16.148]
[1643394958707,2.82787455,92.979,92.881,38.01649399]
[1643394959129,2.82787455,92.979,92.89,16.147]
[1643394960030,10.46596764,92.978,92.89,16.147]
[1643394960631,75.0,92.976,90.406,0.2]
[1643394960833,163.02,92.85,92.656,44.68763652]
[1643394961037,0.00893179,92.669,92.593,4.26677013]
[1643394961232,176.06,92.66,92.628,53.7875]
[1643394961431,176.06,92.65,92.44,4.26677013]
[1643394961734,34.671,92.65,92.44,4.26677013]
[1643394961933,0.30717316,92.624,92.421,4.26677013]
[1643394962233,5.0,92.578,92.37,4.26677013]
[1643394962431,13.04,92.57,92.37,4.26677013]
[1643394962732,9.44,92.672,92.438,0.30010691]
[1643394962931,4.39747479,92.734,92.451,145.73954901]
[1643394963132,0.00596764,92.569,92.485,49.0910486]